[Event "1000GM 0004 IM Norm 2022"]
[Site "Saint Louis"]
[Date "2022.09.22"]
[Round "3.5"]
[White "Cervantes Landeiro, Thalia"]
[Black "Tsolakidou, Stavroula"]
[Result "1/2-1/2"]
[ECO "D32"]
[WhiteElo "2280"]
[BlackElo "2400"]
[Annotator "TA"]
[PlyCount "118"]
[EventDate "2022.09.21"]
[EventType "tourn"]
[EventCountry "USA"]
[SourceTitle "playchess.com"]
[Source "ChessBase"]
[SourceQuality "1"]
[TimeControl "5400+30"]

{[%evp 11,118,30,47,34,62,30,44,30,33,27,40,13,13,0,20,14,14,21,16,29,58,56,73,72,107,0,15,-74,-87,-175,-166,-160,-132,-119,-124,-132,-130,-113,-114,-120,-115,-112,-18,-50,0,0,-5,-12,0,-92,-88,-111,-68,-113,-61,-198,-132,-161,-166,-218,-96,-90,-100,-64,-50,-79,0,0,0,0,0,0,0,0,0,-16,-25,-170,-178,-145,0,0,0,0,0,0,282,267,360,362,360,357,443,166,166,166,166,166,166,151,166,0,0,0,0,0,0,0,0]} 1. d4 {[%emt 0:00:02]} d5 {[%emt 0:03:44]} 2. c4 {[%emt 0:00:09]} e6 {[%emt 0:00:05]} 3. Nc3 {[%emt 0:00:04]} c5 {[%emt 0:00:21]} 4. cxd5 {[%emt 0:00:39]} cxd4 {[%emt 0:00:08]} 5. Qxd4 {[%emt 0:00:26]} Nc6 {[%emt 0:00:07]} 6. Qd1 {[%emt 0:02:34]} exd5 {[%emt 0:00:07]} 7. Qxd5 {[%emt 0:01:30] D32: Tarrasch Defence: Sidelines and lines without g3.} Bd6 {[%emt 0:00:13]} 8. Bg5 {[%emt 0:06:14] 8.Nf3 is the modern continuation.} (8. g3 $5 {[%cal Rc1f4]}) 8... Nge7 {[%emt 0:03:59]} 9. Qd2 {[%emt 0:00:56] White is slightly better.} h6 {[%emt 0:00:28]} 10. Bh4 {[%emt 0:03:17]} Qb6 {[%emt 0:06:24][%cal Oe8g8] [#]} 11. e3 $146 {[%emt 0:15:51]} (11. Qxd6 Qxb2 12. Rd1 Qxc3+ 13. Qd2 Qa3 $17) ({Predecessor:} 11. Rd1 Bb4 12. a3 Bxc3 13. Qxc3 Nf5 14. Nf3 Nxh4 15. Nxh4 O-O 16. e3 Bg4 17. Be2 Bxe2 18. Kxe2 {0-1 (52) Hiller,J (1938)-Haase,R (2133) Neustadt an der Weinstrasse 2018}) 11... Be6 {[%emt 0:02:29]} 12. Bxe7 {[%emt 0:05:48]} (12. Qxd6 Qxb2 13. Rd1 Qxc3+ 14. Qd2 Qa3 $17) 12... Kxe7 {[%emt 0:08:51]} 13. Nf3 {[%emt 0:03:36]} Rhd8 {[%emt 0:06:12]} 14. Qc1 {[%emt 0:01:47]} Rac8 {[%emt 0:05:24]} 15. Be2 {[%emt 0:01:32]} Qa5 {[%emt 0:02:22]} 16. O-O {[%emt 0:03:16]} Qh5 {[%emt 0:21:44]} 17. Qc2 {[%emt 0:07:40]} b5 {[%emt 0:03:15]} 18. Qe4 {[%emt 0:07:56]} (18. Nxb5 $2 Ne5 19. Nfd4 Nf3+ 20. Nxf3 Rxc2 $19) ({Better is} 18. a3 $16) 18... b4 $11 {[%emt 0:01:44]} 19. Nb5 {[%emt 0:01:23]} (19. Na4 $11) 19... Bxh2+ $1 $17 {[%emt 0:00:49]} 20. Nxh2 {[%emt 0:00:25]} (20. Kh1 $17 {keeps fighting.} Bb8+ 21. Kg1) 20... Qxe2 $19 {[%emt 0:00:07]} 21. a4 {[%emt 0:13:09]} Qxb2 {[%emt 0:10:44]} 22. Nf3 {[%emt 0:02:55] Against Qe5} f5 $1 {[%emt 0:01:33]} ({Of course not} 22... Kf8 $6 23. Nfd4 Nxd4 24. Nxd4 $11) 23. Qf4 {[%emt 0:02:16]} g5 {[%emt 0:02:06]} 24. Qh2 {[%emt 0:00:21] And now Nfd4 would win.} Qf6 {[%emt 0:00:54]} 25. Nfd4 {[%emt 0:02:22]} Nxd4 {[%emt 0:03:07]} 26. Nxd4 {[%emt 0:00:12]} Bd7 {[%emt 0:00:22]} (26... a5 $17 27. Rfd1 Kf7 28. Qh5+ Kg7) 27. a5 $11 {[%emt 0:02:02]} f4 {[%emt 0:04:27]} (27... Kf8 $15) 28. Qh5 {[%emt 0:03:12]} Kf8 {[%emt 0:00:47]} 29. Qf3 {[%emt 0:03:21]} Bc6 {[%emt 0:04:23]} 30. Qh3 {[%emt 0:01:10]} (30. Nxc6 $11 {keeps the balance.} Rxc6 31. exf4) 30... Bd5 $17 {[%emt 0:01:20]} 31. Rad1 {[%emt 0:02:07]} Bf7 $1 {[%emt 0:02:10]} 32. Rfe1 {[%emt 0:01:42]} Rb8 {[%emt 0:02:03]} ({Black should try} 32... Rc5 $17 33. Qf3 Rdd5) 33. Qf3 {[%emt 0:01:37]} (33. Rc1 $15 b3 34. Rc6) 33... Rd5 {[%emt 0:02:26]} (33... b3 $19 {White must now prevent ...b2.} 34. Rb1 Kg7) 34. Rc1 {[%emt 0:01:33]} b3 {[%emt 0:00:12] ...b2 is the strong threat.} ({Resist} 34... Rxa5 35. Nc6 Rab5 36. Nxb8 Rxb8 37. exf4 $16) 35. Nc6 {[%emt 0:01:39]} (35. Rb1 $142) 35... Re8 {[%emt 0:01:56]} (35... g4 $19 36. Qxg4 Re8) 36. e4 {[%emt 0:00:40]} Rd7 {[%emt 0:00:44]} 37. e5 {[%emt 0:00:34]} Qf5 {[%emt 0:00:13]} 38. Qc3 {[%emt 0:00:56][%cal Oe5e6] Threatens to win with e6!} Be6 {[%emt 0:00:42]} (38... Rd3 $1 $17 {[%cal Rd3c3]} 39. Qb2 (39. Qc5+ Kg7 $17) 39... Kg8) 39. Nd4 $11 {[%emt 0:01:19]} Qf7 $36 {[%emt 0:00:05][%mdl 2048] Black fights for an advantage.} 40. Red1 {[%emt 0:00:57]} Red8 {[%emt 0:00:56]} 41. Nxe6+ {[%emt 0:00:54]} Qxe6 {[%emt 0:00:03]} 42. Rxd7 {[%emt 0:00:34] Dancing on a razor blade.} Rxd7 {[%emt 0:00:13][%mdl 4096] Endgame KQR-KQR} 43. Qc8+ {[%emt 0:00:43]} Kf7 {[%emt 0:00:24][%cal Od7d1]} 44. Qh8 {[%emt 0:00:32]} (44. Qb8 $11 {and White has nothing to worry.}) 44... Kg6 $19 {[%emt 0:00:44]} 45. Qb8 {[%emt 0:00:34]} Rd5 {[%emt 0:01:20]} (45... g4 $1 $17 {Hoping for ...Rd2.} 46. Rb1 g3) 46. Qxb3 $11 {[%emt 0:00:13]} Rxe5 {[%emt 0:00:14]} 47. Qd3+ {[%emt 0:00:28]} Kf6 {[%emt 0:00:38]} 48. Qd4 {[%emt 0:00:28]} a6 $2 {[%emt 0:00:39][%mdl 8192]} (48... Kg6 $11 {and Black stays safe.}) 49. Rc5 $18 {[%emt 0:00:34]} Kf5 {[%emt 0:00:13]} 50. Qd3+ {[%emt 0:00:18]} Kf6 {[%emt 0:00:07]} 51. Qc3 {[%emt 0:00:11] Strongly threatening Rc6.} Qe8 {[%emt 0:01:08]} 52. f3 $2 {[%emt 0:01:15]} (52. Rc6+ Kg7 53. Rc8) 52... Kf5 {[%emt 0:00:30] [#]} 53. Qc2+ {[%emt 0:00:28][%mdl 1024] White has strong compensation.} Kf6 {[%emt 0:00:08] ( -> ...Re1+)} 54. Rc6+ {[%emt 0:00:32]} Re6 {[%emt 0:00:09]} 55. Qc3+ {[%emt 0:00:15]} Kg6 {[%emt 0:00:54] [#]} 56. Qd3+ $2 {[%emt 0:00:45]} (56. Rb6 $1 $18 {Threatening mate with Qe5.} Kh7 57. Rb7+ Kg6 58. Kh2) 56... Kh5 $11 {[%emt 0:00:24] The position is equal.} 57. Rxa6 {[%emt 0:00:30]} Rxa6 {[%emt 0:00:44]} 58. Qxa6 {[%emt 0:00:02] aiming for Qf1.} Qe1+ {[%emt 0:00:05]} 59. Kh2 {[%emt 0:00:29]} Qg3+ {[%emt 0:00:10] Weighted Error Value: White=0.29 (precise) /Black=0.28 (precise)} 1/2-1/2

[Event "1000GM 0004 IM Norm 2022"]
[Site "Saint Louis"]
[Date "2022.09.23"]
[Round "4.1"]
[White "Denby, Caleb"]
[Black "Tsolakidou, Stavroula"]
[Result "1/2-1/2"]
[ECO "E29"]
[WhiteElo "2201"]
[BlackElo "2400"]
[Annotator "TA"]
[PlyCount "176"]
[EventDate "2022.09.21"]
[EventType "tourn"]
[EventCountry "USA"]
[SourceTitle "playchess.com"]
[Source "ChessBase"]
[SourceQuality "1"]
[TimeControl "5400+30"]

{[%evp 21,176,-18,-7,-18,-7,-16,-14,-7,-7,0,0,0,0,-22,0,-1,0,0,0,0,0,0,36,32,64,62,59,0,75,77,62,72,70,0,7,-27,-6,-115,-96,-197,-197,-197,-197,-197,-197,-197,-197,-197,-197,-197,-160,-228,-177,-179,-173,-179,-179,-199,-169,-170,-170,-181,-174,-176,-164,-161,-130,-154,-120,-155,-132,-137,-102,-131,-122,-154,-102,-102,-102,-101,-102,-101,-84,-83,0,-112,-112,-162,-137,-175,-100,-82,0,-87,-77,-96,-93,-132,-64,-82,0,-145,0,-95,-99,-139,-13,-40,-40,-45,-46,-46,-28,-28,-28,-28,-28,-28,-19,-4578,-4578,-4578,-4578,-4578,-4578,-4578,-4578,-4578,-4578,-4578,-4578,-4578,-4578,-4578,-4578,-4578,-4578,-4578,-4578,-4578,-4578,-4578,-4578,-4578,-4578,-4578,-4578,-4578,-4578,-4578,-4578,-4578,-4578,-4578,-4578,-4578,-36]} 1. d4 {[%emt 0:00:02]} Nf6 {[%emt 0:03:38]} 2. c4 {[%emt 0:00:15]} e6 {[%emt 0:00:18]} 3. Nc3 {[%emt 0:00:07]} Bb4 {[%emt 0:00:11]} 4. a3 {[%emt 0:00:08]} Bxc3+ {[%emt 0:00:15]} 5. bxc3 {[%emt 0:00:03]} c5 {[%emt 0:00:42]} 6. e3 {[%emt 0:01:05]} O-O {[%emt 0:01:14]} 7. Bd3 {[%emt 0:01:41]} Nc6 {[%emt 0:00:23]} 8. Ne2 {[%emt 0:00:09]} b6 {[%emt 0:01:07]} 9. O-O {[%emt 0:02:02]} Ba6 {[%emt 0:00:30]} 10. e4 {[%emt 0:00:30]} Ne8 {[%emt 0:00:53]} 11. f4 {[%emt 0:00:13]} f5 {[%emt 0:01:09]} 12. exf5 {[%emt 0:00:07] E29: Nimzo-Indian: Sämisch: 5...0-0 6 e3 c5 7 Bd3 Nc6.} exf5 {[%emt 0:00:05]} 13. dxc5 {[%emt 0:00:05]} bxc5 {[%emt 0:00:11]} 14. Be3 {[%emt 0:00:04] The position is equal.} d6 {[%emt 0:06:26]} 15. Ng3 {[%emt 0:00:24]} g6 {[%emt 0:00:45]} 16. Re1 $1 {[%emt 0:00:07][%cal Od3f5][%mdl 4] is more profitable than 16.Bxf5 at the moment.} Na5 {[%emt 0:07:24] [#]} 17. Rb1 $146 {[%emt 0:00:17]} ({Predecessor:} 17. Nf1 Nf6 18. Bf2 Qd7 19. Ne3 Rae8 20. Bh4 Bb7 21. Bf1 Ne4 22. Nd5 Bxd5 23. cxd5 {½-½ (119) Sokolov,I (2652)-Grischuk,A (2717) Calatrava 2007}) 17... Rf7 {[%emt 0:08:33]} (17... Bxc4 $2 18. Bxc4+ Nxc4 19. Qd5+ Kh8 20. Qxc4 $18) 18. Bf2 {[%emt 0:06:03]} Bxc4 {[%emt 0:04:34]} 19. Nf1 $1 {[%emt 0:02:56]} Nc7 {[%emt 0:09:50]} 20. Ne3 {[%emt 0:11:24]} Bxd3 {[%emt 0:05:43]} 21. Qxd3 {[%emt 0:00:09]} d5 {[%emt 0:00:35]} 22. Rbd1 {[%emt 0:01:46][%cal Re3d5]} Rd7 {[%emt 0:01:22]} 23. g4 {[%emt 0:02:09]} d4 {[%emt 0:28:37]} 24. Nc4 {[%emt 0:08:54]} (24. cxd4 $14 Rxd4 25. Qc2) 24... Nc6 {[%emt 0:00:29]} (24... Nd5 $11 {keeps the balance.} 25. Nxa5 Qxa5 26. cxd4 c4 27. Qxc4 Qxa3) 25. gxf5 $16 {[%emt 0:04:58]} gxf5 {[%emt 0:00:49]} 26. Qxf5 {[%emt 0:04:59]} Rg7+ {[%emt 0:00:08]} 27. Bg3 {[%emt 0:02:36] White has more active pieces.} (27. Kh1 $14) 27... Qd5 $132 {[%emt 0:00:41][%mdl 2048] Black puts up resistance} 28. Ne5 {[%emt 0:08:41]} Rf8 {[%emt 0:01:05]} 29. Qe4 {[%emt 0:01:02]} (29. Qh3 $1 $11 {remains equal.}) 29... Nxe5 {[%emt 0:01:06]} 30. fxe5 {[%emt 0:00:32]} (30. Qxe5 $17 {only move.} Qf3 31. Rf1 Rxg3+ 32. hxg3 Qxg3+ 33. Kh1 Qh3+ 34. Kg1) 30... Qxe4 $19 {[%emt 0:05:09]} 31. Rxe4 {[%emt 0:00:13]} Nd5 {[%emt 0:00:36]} ({Weaker is} 31... dxc3 32. Rc4 $11) 32. cxd4 {[%emt 0:01:25]} Nc3 $1 {[%emt 0:00:05][%csl LRd1,LRe4]} 33. Rde1 {[%emt 0:00:26]} Nxe4 {[%emt 0:00:07]} 34. Rxe4 {[%emt 0:00:02]} cxd4 {[%emt 0:01:32]} 35. Rxd4 {[%emt 0:00:05][%mdl 4096] Endgame KRR-KRB} Rg6 {[%emt 0:00:12]} 36. Ra4 {[%emt 0:00:29]} (36. Kg2 $17 {was worth a try.}) 36... a6 {[%emt 0:00:13]} 37. Kg2 {[%emt 0:00:59]} Rf5 {[%emt 0:00:19]} 38. Ra5 {[%emt 0:01:13]} Kf8 {[%emt 0:01:56]} 39. Rc5 {[%emt 0:00:14]} Ke8 {[%emt 0:02:16]} 40. Kh3 {[%emt 0:01:47]} Kd7 {[%emt 0:02:17]} 41. Kh4 {[%emt 0:00:48]} Rf3 {[%emt 0:00:44]} 42. Ra5 {[%emt 0:02:34]} Kc8 {[%emt 0:00:59]} 43. Ra4 {[%emt 0:02:34]} Kb7 {[%emt 0:01:03]} 44. Kh5 {[%emt 0:01:54]} Kb6 {[%emt 0:00:55]} 45. Rb4+ {[%emt 0:01:33]} Kc5 {[%emt 0:01:09]} 46. Rb7 {[%emt 0:04:27]} Rf5+ {[%emt 0:00:45]} 47. Kh4 {[%emt 0:00:04]} h5 {[%emt 0:00:18]} 48. Rb4 {[%emt 0:04:14] Against Rg4+} a5 {[%emt 0:00:18]} (48... Kd5 $142 49. Ra4 Rc6 50. Ra5+ Ke6) 49. Ra4 $17 {[%emt 0:00:28]} Kb5 {[%emt 0:00:16]} 50. Re4 {[%emt 0:00:05]} Re6 {[%emt 0:00:11]} 51. Bf4 {[%emt 0:01:03]} Kc5 {[%emt 0:02:16]} 52. Ra4 {[%emt 0:00:16]} Ra6 {[%emt 0:00:31]} (52... Kc6 $17 53. Bg3 Kb5) 53. Kg3 {[%emt 0:01:18] [#]} (53. e6 $1 $11) 53... Kd5 $1 {[%emt 0:00:49]} 54. Kf3 {[%emt 0:00:08]} (54. Kh4 $17) 54... Rf7 $19 {[%emt 0:00:35]} 55. Ke3 {[%emt 0:05:40]} Rb7 {[%emt 0:00:27]} (55... Ke6 $19 56. Rc4 Kf5) 56. Bg3 $17 {[%emt 0:00:18]} Rf7 {[%emt 0:01:26]} (56... Ke6 $17 {And now ...Rc7 would win.} 57. Rh4 Rb3+ 58. Kd4 Kf5 59. Rxh5+ Kg6) 57. Rd4+ {[%emt 0:00:40]} (57. Bf4 $1 $11) 57... Ke6 {[%emt 0:00:05]} 58. Rh4 {[%emt 0:00:37]} Rf5 {[%emt 0:01:11]} 59. Ra4 {[%emt 0:00:52]} Rf1 {[%emt 0:00:33]} (59... Rg5 $17 60. Bf4 Rg4) 60. Rh4 $15 {[%emt 0:00:38]} Rf5 {[%emt 0:01:56]} ({Black should try} 60... Rc6 61. Rxh5 Ra1) 61. Ra4 $1 $17 {[%emt 0:00:14]} Rf7 {[%emt 0:00:31]} (61... Rg5 $142 62. Bf4 Rg4) 62. Rh4 {[%emt 0:00:14] [#]} Rh7 $1 {[%emt 0:00:32]} 63. Ra4 {[%emt 0:01:34]} h4 {[%emt 0:00:17]} ({Better is} 63... Rg7 $17 {aiming for ...Rg4.} 64. Rf4 Rg6) 64. Bxh4 {[%emt 0:02:53]} Kxe5 {[%emt 0:00:05]} 65. Bd8 {[%emt 0:00:07]} Rh3+ {[%emt 0:00:43]} 66. Kf2 {[%emt 0:01:22]} Rxh2+ {[%emt 0:00:07]} 67. Kg1 {[%emt 0:00:31]} Ra2 {[%emt 0:00:41] ...Rc6 is the strong threat.} 68. Rxa5+ {[%emt 0:00:09]} Rxa5 {[%emt 0:00:04]} 69. Bxa5 $11 {[%emt 0:00:05] KR-KB} Ke4 {[%emt 0:01:12]} 70. Kh1 $2 {[%emt 0:02:24][%mdl 8192] White does not recover from this.} (70. Bb4 $11) 70... Rxa3 $19 {[%emt 0:00:52] Black is clearly winning.} 71. Bb6 {[%emt 0:00:08]} Ra2 {[%emt 0:00:18]} 72. Bc5 {[%emt 0:00:41]} Kf3 {[%emt 0:00:11]} 73. Bb6 {[%emt 0:00:25]} Rg2 {[%emt 0:00:30]} 74. Ba7 {[%emt 0:00:55]} Kg3 {[%emt 0:00:45]} 75. Bb8+ {[%emt 0:00:13]} Kf2 {[%emt 0:00:23]} 76. Ba7+ {[%emt 0:00:14]} Kf1 {[%emt 0:00:11]} 77. Bb8 {[%emt 0:00:56]} Rg8 {[%emt 0:00:41]} 78. Bc7 {[%emt 0:00:35]} Kf2 {[%emt 0:00:11]} 79. Bb6+ {[%emt 0:00:07]} Kg3 {[%emt 0:01:04]} 80. Bc7+ {[%emt 0:00:05]} Kh3 {[%emt 0:00:13]} 81. Bb6 {[%emt 0:00:14]} Rb8 {[%emt 0:00:20]} 82. Ba7 {[%emt 0:00:19]} Rb1+ {[%emt 0:00:33]} 83. Bg1 {[%emt 0:00:05]} Kg4 {[%emt 0:00:04]} 84. Kg2 {[%emt 0:00:06]} Rb2+ {[%emt 0:00:11]} 85. Bf2 {[%emt 0:03:57]} Ra2 {[%emt 0:00:22]} 86. Kg1 {[%emt 0:00:11]} Kf3 {[%emt 0:00:41] ( -> ...Ra1+)} 87. Bb6 {[%emt 0:00:54]} Rb2 {[%emt 0:01:46]} 88. Bc5 {[%emt 0:00:11]} Rb1+ $2 {[%emt 0:00:21] Weighted Error Value: White=0.22 (precise) /Black=0.19 (very precise)} (88... Rc2 $19 89. Bb6 Rg2+ 90. Kh1 Rc2) 1/2-1/2

[Event "1000GM 0004 IM Norm 2022"]
[Site "Saint Louis"]
[Date "2022.09.23"]
[Round "4.2"]
[White "Yim, Sung Ho"]
[Black "Cervantes Landeiro, Thalia"]
[Result "1/2-1/2"]
[ECO "A28"]
[WhiteElo "2207"]
[BlackElo "2280"]
[Annotator "TA"]
[PlyCount "93"]
[EventDate "2022.09.21"]
[EventType "tourn"]
[EventCountry "USA"]
[SourceTitle "playchess.com"]
[Source "ChessBase"]
[SourceQuality "1"]
[TimeControl "5400+30"]

{[%evp 10,93,8,4,8,27,43,35,39,39,43,48,45,38,38,36,35,31,34,38,27,-20,-14,-21,-20,-31,-24,-66,-57,-46,-47,-70,14,13,75,79,80,47,151,128,112,0,0,0,0,-7,-10,-7,0,0,0,-21,-22,-29,0,-152,-86,-86,-85,-95,-71,-100,-100,-151,-174,-164,-120,-112,-93,-105,-89,-98,0,0,0,0,0,0,0,0,0,0,0,0,0,0]} 1. c4 {[%emt 0:00:03]} e5 {[%emt 0:00:09]} 2. Nc3 {[%emt 0:00:05]} Bb4 {[%emt 0:00:58]} 3. Qc2 {[%emt 0:00:32]} Nf6 {[%emt 0:01:31]} 4. Nf3 {[%emt 0:00:50]} Nc6 {[%emt 0:04:16]} 5. e3 {[%emt 0:02:02]} O-O {[%emt 0:01:13]} 6. Nd5 {[%emt 0:05:49]} h6 {[%emt 0:12:45] A28: English Opening: Four Knights Variation.} 7. Qf5 {[%emt 0:00:25]} d6 {[%emt 0:10:46]} 8. Nxf6+ {[%emt 0:02:00]} Qxf6 {[%emt 0:00:10] White is slightly better.} 9. Qxf6 gxf6 10. a3 {[%emt 0:02:30]} Ba5 {[%emt 0:03:36]} 11. b4 {[%emt 0:01:33][%cal Bb2b4,Bb4b5][%mdl 32]} Bb6 {[%emt 0:00:09][%cal Ba5b6,Bb6c5,Bc5b4][%mdl 32]} 12. Bb2 {[%emt 0:01:41]} a5 {[%emt 0:05:09]} 13. b5 {[%emt 0:00:51]} Ne7 {[%emt 0:00:36] [#]} 14. a4 $146 {[%emt 0:04:40]} ({Predecessor:} 14. d4 c5 15. bxc6 Nxc6 16. c5 Bc7 17. Bb5 Bg4 18. Bxc6 {½-½ (18) Gibbs,D (1812)-Smith,G (2010) Torquay 2019}) 14... Bc5 {[%emt 0:04:44]} 15. Rc1 {[%emt 0:04:56]} (15. Be2 $142) 15... Be6 {[%emt 0:02:07]} 16. Be2 {[%emt 0:02:34]} c6 {[%emt 0:01:29]} 17. O-O {[%emt 0:01:03]} cxb5 {[%emt 0:01:42]} 18. d4 {[%emt 0:03:28]} Bb4 {[%emt 0:00:51]} 19. axb5 {[%emt 0:05:48]} Rfc8 $1 {[%emt 0:02:27]} 20. Rfd1 {[%emt 0:03:09]} b6 {[%emt 0:07:01]} (20... a4 $15) 21. Nd2 $11 {[%emt 0:02:23]} Ra7 {[%emt 0:08:11]} (21... a4 $11) 22. Ne4 $16 {[%emt 0:01:33]} Kg7 {[%emt 0:04:43]} 23. f4 {[%emt 0:11:18]} Ng6 {[%emt 0:07:25]} (23... exf4 $14 24. d5 (24. exf4 d5 $17) 24... Bf5 25. Nxf6 (25. Bxf6+ $2 Kg6 $19) 25... fxe3) 24. c5 $1 {[%emt 0:10:09]} dxc5 {[%emt 0:03:12]} 25. Nd6 {[%emt 0:11:46]} ({Much worse is} 25. fxe5 $6 fxe5 26. dxc5 bxc5 $11) ({White should try} 25. dxe5 $16 f5 26. Nd6) 25... exd4 $11 {[%emt 0:04:03]} 26. Nxc8 {[%emt 0:02:15]} Bxc8 {[%emt 0:00:07]} 27. g3 $132 {[%emt 0:08:34][%mdl 2048] White is fighting back} Re7 {[%emt 0:01:24]} 28. Bxd4 {[%emt 0:01:23]} cxd4 {[%emt 0:02:47]} 29. Rxc8 {[%emt 0:00:06]} Rxe3 {[%emt 0:01:14]} 30. Kf2 {[%emt 0:03:14]} (30. Kf1 $5 {[%cal Rd1d4]}) 30... Ne7 {[%emt 0:01:39]} 31. Rc4 {[%emt 0:01:09]} Rb3 {[%emt 0:02:50] And now ...Bc5 would win.} 32. Rc2 {[%emt 0:03:10]} (32. Rdxd4 $11 Bc5 33. Rxc5 $1 bxc5 34. Rd7) 32... Bc3 {[%emt 0:01:20]} ({Better is} 32... Bc5 $1 {...Nd5 is the strong threat.} 33. Rd3 Rxb5) 33. Ra2 {[%emt 0:02:26]} Nf5 {[%emt 0:00:46]} 34. Bd3 {[%emt 0:01:54] [#]} Nd6 {[%emt 0:01:06]} 35. Ke2 {[%emt 0:01:43]} Nxb5 {[%emt 0:01:04]} 36. Bxb5 {[%emt 0:00:28]} (36. Bc2 $142 Rb4 37. Rb1) 36... Rxb5 $17 {[%emt 0:00:01][%mdl 4096] Endgame KRR-KRB} 37. Kd3 {[%emt 0:00:13]} Rc5 {[%emt 0:01:20]} 38. Rc1 {[%emt 0:00:04]} f5 {[%emt 0:00:16]} 39. Rcc2 {[%emt 0:00:57]} Kf6 {[%emt 0:00:45]} 40. Re2 {[%emt 0:00:54] [#]} b5 {[%emt 0:01:02]} (40... Rb5 $1 $17) 41. Re8 $1 $11 {[%emt 0:00:02] The position is equal.} b4 {[%emt 0:01:23] White must now prevent ...b3.} 42. Rb8 {[%emt 0:01:14]} Kg7 {[%emt 0:01:30]} 43. Rb6 {[%emt 0:00:13]} h5 {[%emt 0:00:46]} 44. Rb7 {[%emt 0:00:43]} Kg6 {[%emt 0:00:25]} 45. Rb6+ {[%emt 0:00:04]} Kg7 {[%emt 0:00:22]} 46. Rb7 {[%emt 0:00:03]} Kg6 {[%emt 0:00:40]} 47. Rb6+ {[%emt 0:00:02] Weighted Error Value: White=0.14 (very precise) /Black=0.16 (very precise)} 1/2-1/2

[Event "1000GM 0004 IM Norm 2022"]
[Site "Saint Louis"]
[Date "2022.09.23"]
[Round "4.3"]
[White "Wang, Tianqi"]
[Black "Krishnan, Varun"]
[Result "1/2-1/2"]
[ECO "A07"]
[WhiteElo "2424"]
[BlackElo "2306"]
[Annotator "TA"]
[PlyCount "95"]
[EventDate "2022.09.21"]
[EventType "tourn"]
[EventCountry "USA"]
[SourceTitle "playchess.com"]
[Source "ChessBase"]
[SourceQuality "1"]
[TimeControl "5400+30"]

{[%evp 14,95,0,-3,15,19,21,25,33,16,23,22,15,1,27,16,18,8,45,42,43,44,37,26,29,20,22,43,38,43,30,28,40,-6,-1,-5,27,27,27,27,27,31,41,41,43,42,42,11,10,10,11,10,35,35,35,35,35,35,35,35,35,35,35,35,40,35,35,35,40,40,40,40,40,40,40,40,40,3,40,40,40,40,40,11]} 1. Nf3 {[%emt 0:00:09]} d5 {[%emt 0:02:31]} 2. g3 {[%emt 0:00:09]} g6 {[%emt 0:00:40]} 3. Bg2 {[%emt 0:00:06]} Bg7 {[%emt 0:00:01]} 4. O-O {[%emt 0:00:09]} e5 {[%emt 0:00:04]} 5. d3 {[%emt 0:00:12]} Ne7 {[%emt 0:00:19]} 6. Nbd2 {[%emt 0:00:11]} O-O {[%emt 0:00:24]} 7. e4 {[%emt 0:00:13]} Nbc6 {[%emt 0:06:18]} 8. c3 {[%emt 0:00:23]} dxe4 {[%emt 0:03:56] A07: Réti Opening: New York and Capablanca Systems.} 9. dxe4 {[%emt 0:00:17]} a5 {[%emt 0:06:19]} 10. a4 {[%emt 0:00:43]} b6 {[%emt 0:01:05] White has an edge.} 11. Qb3 {[%emt 0:01:43]} Ba6 {[%emt 0:02:27]} 12. Re1 {[%emt 0:01:32]} Qd7 {[%emt 0:03:13] [#]} 13. Nb1 $146 {[%emt 0:05:25][%cal Bd2b1,Bb1a3,Ba3b5,Bb5c7][%mdl 32]} ({Predecessor:} 13. Bf1 Bxf1 14. Nxf1 Rad8 15. Bg5 Qg4 16. Bxe7 Nxe7 17. N3d2 Rd3 18. Rad1 Rfd8 19. Ne3 {1-0 (41) Haub,T (2468)-Guliyev,N (2590) Metz 2007}) 13... Nd8 {[%emt 0:03:21]} 14. Na3 {[%emt 0:00:29]} Nb7 {[%emt 0:03:43]} 15. Be3 {[%emt 0:01:19]} Qc6 {[%emt 0:02:33]} 16. Nb5 {[%emt 0:13:16]} Nc5 {[%emt 0:03:43]} 17. Bxc5 {[%emt 0:03:06]} Qxc5 {[%emt 0:00:10]} 18. Rad1 {[%emt 0:01:48]} c6 {[%emt 0:10:26]} 19. Nc7 {[%emt 0:15:11]} Bc4 {[%emt 0:04:34]} 20. Qc2 {[%emt 0:00:02]} Ra7 {[%emt 0:04:55]} 21. Rd7 {[%emt 0:01:15]} b5 {[%emt 0:01:55] [#] Threatens to win with ...bxa4.} 22. b3 {[%emt 0:08:08]} Rc8 {[%emt 0:01:31]} 23. Qd1 {[%emt 0:17:54]} (23. bxc4 $14 Raxc7 24. Rxc7 Rxc7 25. Qd3) 23... Bxb3 $11 {[%emt 0:09:40]} 24. Qxb3 {[%emt 0:00:09] Ne6 is the strong threat.} Raxc7 {[%emt 0:00:32] [#]} 25. Ng5 $1 {[%emt 0:02:19]} Qc4 {[%emt 0:05:06]} (25... Rxd7 $2 26. Qxf7+ Kh8 27. Ne6 Qxf2+ 28. Qxf2 $18) 26. Qxc4 {[%emt 0:00:08]} bxc4 {[%emt 0:00:05]} 27. Red1 {[%emt 0:00:07]} Bf6 {[%emt 0:04:25]} 28. Nf3 {[%emt 0:00:23]} Nd5 {[%emt 0:02:35]} 29. Rxc7 {[%emt 0:06:04]} Nxc7 {[%emt 0:00:07][%cal Bd5c7,Bc7e8,Be8d6,Bd6c8,Bc8b6][%mdl 32]} 30. Rd6 {[%emt 0:01:07]} (30. Bh3 $5 {[%cal Rh3c8]} Rb8 31. Rd6 Rb1+ 32. Bf1 $14 (32. Kg2 Ne8 $14)) 30... Ne8 {[%emt 0:03:53]} 31. Rd7 {[%emt 0:00:06]} Rc7 {[%emt 0:01:52]} 32. Bh3 {[%emt 0:00:20]} Rxd7 {[%emt 0:03:53]} 33. Bxd7 {[%emt 0:00:08][%mdl 4096] Endgame KBN-KBN} Nd6 {[%emt 0:01:19]} 34. Bxc6 {[%emt 0:00:05]} Nc8 {[%emt 0:01:35]} 35. Kf1 {[%emt 0:00:29]} Kf8 {[%emt 0:01:37]} 36. Ke2 {[%emt 0:00:17]} Nb6 {[%emt 0:02:53]} 37. Bb5 {[%emt 0:00:17]} h5 {[%emt 0:01:29]} 38. h3 {[%emt 0:02:09]} Ke7 {[%emt 0:00:43]} 39. Kd1 {[%emt 0:05:36]} Bg7 {[%emt 0:01:15]} 40. Nd2 {[%emt 0:03:41]} Bf6 {[%emt 0:00:49]} 41. Kc2 {[%emt 0:01:42]} Bg5 {[%emt 0:00:56]} 42. Nxc4 {[%emt 0:00:42]} Nxc4 {[%emt 0:00:03]} 43. Bxc4 $14 {[%emt 0:00:03] KB-KB} h4 {[%emt 0:01:22]} 44. g4 {[%emt 0:00:40]} Bf4 {[%emt 0:00:23]} 45. Bd5 {[%emt 0:00:26]} f6 {[%emt 0:00:50][%cal Of4g3]} (45... Bg3 $5) 46. Kd3 {[%emt 0:02:54] White is slightly better.} Kd6 {[%emt 0:00:11]} 47. Kc4 {[%emt 0:00:21]} Bd2 {[%emt 0:00:10]} 48. f3 {[%emt 0:02:48] Weighted Error Value: White=0.05 (flawless) /Black=0.07 (flawless)} (48. Bf7 $5 {[%cal Rf7g6]}) 1/2-1/2